fUST/lending_fUST_20240307
["ID","MTS","AMOUNT","RATE_DAILY","PERIOD"]
[317431001,1709800238465,-155.3144114,0.00022999,2]
[317431002,1709800238475,-625.43159908,0.00022999,2]
[317431003,1709800238484,-1391.2056662,0.00022999,2]
[317431004,1709800238493,-173.24715918,0.00022999,2]
[317431005,1709800238502,-160.0,0.00022999,2]
[317431006,1709800238511,-160.0,0.00022999,2]
[317431007,1709800238521,-3955831.79810083,0.00023,5]
[317431008,1709800238533,-1123.52549523,0.00023,5]
[317431018,1709800240996,-7684.79971455,0.00023,5]
[317431076,1709800243291,-4079.58841755,0.00023,5]
[317431337,1709800246073,-500.0,0.00022381,2]
[317431339,1709800246082,-500.0,0.00022381,2]
[317431341,1709800246092,-500.0,0.00022381,2]
[317431343,1709800246101,-500.0,0.00022381,2]
[317431345,1709800246110,-500.0,0.00022381,2]
[317431347,1709800246120,-500.0,0.00022381,2]
[317431349,1709800246129,-500.0,0.00022381,2]
[317431351,1709800246139,-500.0,0.00022381,2]
[317431353,1709800246148,-500.0,0.00022381,2]
[317431355,1709800246157,-281658.0522473,0.00023,5]
[317431365,1709800246241,-500.0,0.00022381,2]
[317431367,1709800246251,-500.0,0.00022381,2]
[317431369,1709800246260,-620.0,0.00022381,2]
[317431371,1709800246269,-500.0,0.00022381,2]
[317431373,1709800246281,-500.0,0.00022381,2]
[317431375,1709800246291,-500.0,0.00022381,2]
[317431377,1709800246300,-3567.02300436,0.00023,5]
[317432393,1709801433434,-429.03125533,0.00020474,2]
[317432394,1709801433443,-21.43874816,0.00020475,2]
[317432396,1709801433563,-1997.82809035,0.00020475,2]
[317432398,1709801433573,-325.97685713,0.00020477,2]
[317432806,1709801438167,-498.34963877,0.00020477,2]
[317432808,1709801438176,-394.32476994,0.00020554,2]
[317433368,1709801443898,-5810.29641584,0.00020554,2]
[317433469,1709801446350,-10073.71172545,0.00020554,2]
[317433471,1709801446359,-305.459075,0.00020558,2]
[317433473,1709801446369,-391.64066148,0.000209,2]
[317433475,1709801446378,-172.26223112,0.00020901,2]
[317433476,1709801446387,-6300.34910292,0.00022,2]
[317433478,1709801446397,-359.0,0.00022,2]
[317433480,1709801446406,-1668.03514243,0.00022,2]
[317433482,1709801446415,-8242.71882646,0.00022,2]
[317433484,1709801446425,-359.0,0.00022192,2]
[317433486,1709801446434,-201.47218164,0.000223,2]
[317433488,1709801446444,-153.0,0.000223,2]
[317433490,1709801446453,-5000.0,0.00022396,7]
[317433492,1709801446463,-431.57133492,0.00022396,3]
[317433494,1709801446473,-5000.0,0.00022396,7]
[317433496,1709801446485,-153.0,0.00022452,2]
[317433498,1709801446501,-359.0,0.00022466,2]
[317433500,1709801446522,-200.0,0.000225,2]
[317433502,1709801446532,-359.0,0.0002274,2]
[317433504,1709801446543,-793.9,0.00022899,2]
[317433506,1709801446553,-500.0,0.00022899,2]
[317433508,1709801446563,-500.0,0.00022899,2]
[317433510,1709801446573,-500.0,0.00022899,2]
[317433512,1709801446582,-500.0,0.00022899,2]
[317433514,1709801446594,-500.0,0.00022899,2]
[317433516,1709801446604,-500.0,0.00022899,2]
[317433518,1709801446614,-500.0,0.00022899,2]
[317433520,1709801446625,-500.0,0.00022899,2]
[317433522,1709801446636,-180.0,0.00022899,2]
[317433524,1709801446645,-500.0,0.00022899,2]
[317433526,1709801446655,-500.0,0.00022899,2]
[317433528,1709801446667,-500.0,0.00022899,2]
[317433530,1709801446677,-500.0,0.00022899,2]
[317433532,1709801446687,-500.0,0.00022899,2]
[317433534,1709801446696,-500.0,0.00022899,2]
[317433536,1709801446705,-433.09210192,0.00022899,2]
[317433538,1709801446715,-200.0,0.00022899,2]
[317433540,1709801446724,-497.47763813,0.00022899,2]
[317433542,1709801446733,-500.0,0.00022899,2]
[317433544,1709801446742,-500.0,0.00022899,2]
[317433546,1709801446751,-166.30997853,0.00022899,2]
[317438099,1709802009514,650.2466582,0.00019758,2]
[317438101,1709802392946,319.83761966,0.000189,2]
[317438129,1709802632388,-429.03125533,0.0002064,2]
[317438130,1709802632398,-4080.01167164,0.0002064,2]
[317438131,1709802632407,-16278.33291123,0.00020641,2]
[317438132,1709802632417,-957.28758865,0.00020643,2]
[317438133,1709802632426,-621.51233291,0.00020746,2]
[317438134,1709802632436,-164.232121,0.00021575,2]
[317438135,1709802632445,-620.07561665,0.00021783,2]
[317438136,1709802632455,-44835.1606947,0.00022,2]
[317438137,1709802632465,-2773.41715718,0.00022,2]
[317438138,1709802632475,-822.8131,0.00022,4]
[317438139,1709802632484,-540.0,0.00022,2]
[317438140,1709802632494,-153.0,0.00022,2]
[317438141,1709802632504,-1668.03514243,0.00022,2]
[317438142,1709802632513,-540.0,0.00022192,2]
[317438143,1709802632523,-200.0,0.000223,2]
[317438144,1709802632533,-6027.96877378,0.00022396,3]
[317438145,1709802632542,-5000.0,0.00022396,7]
[317438146,1709802632553,-2350.10011746,0.00022396,3]
[317438147,1709802632562,-5000.0,0.00022396,7]
[317438148,1709802632572,-207.88638195,0.00022396,3]
[317438149,1709802632582,-153.0,0.000224,2]
[317438150,1709802632591,-156.3960838,0.000224,2]
[317438151,1709802632600,-171.15989672,0.00022769,2]
[317438152,1709802632610,-8035.18024072,0.00022798,2]
[317438153,1709802632620,-336.18508144,0.000228,6]
[317438154,1709802632630,-214.78801132,0.00022895,2]
[317438155,1709802632640,-500.0,0.00022895,2]
[317438156,1709802632650,-221.94195979,0.00022895,2]
[317438157,1709802632659,-500.0,0.00022895,2]
[317438158,1709802632669,-500.0,0.00022895,2]
[317438159,1709802632678,-500.0,0.00022895,2]
[317438160,1709802632688,-500.0,0.00022895,2]
[317438161,1709802632698,-500.0,0.00022895,2]
[317438162,1709802632708,-495.37019248,0.00022895,2]
[317438163,1709802632717,-500.0,0.00022895,2]
[317438164,1709802632727,-500.0,0.00022895,2]
[317438165,1709802632736,-200.32101932,0.00022895,2]
[317438166,1709802632746,-500.0,0.00022895,2]
[317438167,1709802632755,-500.0,0.00022895,2]
[317438168,1709802632765,-500.0,0.00022895,2]
[317438169,1709802632774,-500.0,0.00022895,2]
[317438170,1709802632784,-500.0,0.00022895,2]
[317438171,1709802632794,-500.0,0.00022895,2]
[317438172,1709802632806,-500.0,0.00022895,2]
[317438173,1709802632817,-500.0,0.00022895,2]
[317438174,1709802632906,-500.0,0.00022895,2]
[317438175,1709802632915,-500.0,0.00022895,2]
[317438176,1709802632924,-500.0,0.00022895,2]
[317438177,1709802632933,-500.0,0.00022895,2]
[317438178,1709802632946,-500.0,0.00022895,2]
[317438179,1709802632955,-500.0,0.00022895,2]
[317438180,1709802632965,-4214.51201575,0.00022896,2]
[317438181,1709802632974,-66263.32804273,0.000229,2]
[317438182,1709802632984,-1256.75021601,0.000229,2]
[317438183,1709802632994,-6229.49011604,0.00022975,2]
[317438184,1709802633003,-1153.60910857,0.00022998,2]
[317438185,1709802633013,-1170.75169083,0.00022998,3]
[317438186,1709802633023,-875.09853826,0.00022998,2]
[317438187,1709802633034,-1470.00573616,0.00022998,2]
[317438188,1709802633044,-1505.60560698,0.00022999,2]
[317438189,1709802633054,-160.0,0.00022999,2]
[317438190,1709802633063,-160.0,0.00022999,2]
[317438191,1709802633072,-160.0,0.00022999,2]
[317438192,1709802633081,-160.0,0.00022999,2]
[317438193,1709802633090,-160.0,0.00022999,2]
[317438194,1709802633099,-160.0,0.00022999,2]
[317438195,1709802633108,-3299.07797543,0.00023,5]
[317438198,1709802638463,-262.3827165,0.00022894,2]
[317438503,1709802641372,-237.6172835,0.00022894,2]
[317438504,1709802641382,-486.44654468,0.00022894,2]
[317438507,1709802641394,-146.92245747,0.00022894,2]
[317438509,1709802641403,-319.02054249,0.00023,5]
[317438511,1709802641414,-587.835,0.00023,5]
[317438513,1709802641426,-477.01569024,0.00023,5]
[317438516,1709802641439,-252.48215748,0.00023,5]
[317438518,1709802641450,-281.87795268,0.00023,5]
[317438520,1709802641461,-252.64346002,0.00023,5]
[317438522,1709802641472,-258.59687393,0.00023,5]
[317438524,1709802641484,-3788.40000001,0.00023,5]
[317438720,1709802643543,-9520.89628353,0.00023,5]
[317444547,1709803227866,949.76911423,0.0002,10]
[317444548,1709803274504,155.01085076,0.0002,2]
[317444549,1709803292504,155.12240184,0.0002,2]
[317444550,1709803320179,15942.1268091,0.0002,2]
[317444551,1709803340213,1150.89816645,0.0002,2]
[317444564,1709803598603,858.26677093,0.000189,2]
[317445193,1709803838626,-429.03125533,0.00020011,2]
[317445195,1709803838636,-2596.93968043,0.00020011,2]
[317445197,1709803838645,-1605.92382438,0.00020012,2]
[317445199,1709803838655,-8481.01144675,0.00020013,2]
[317445201,1709803838664,-3400.00972637,0.00020014,2]
[317445203,1709803838673,-24890.0,0.00020031,2]
[317445205,1709803838683,-181.245409,0.00020488,2]
[317445207,1709803838693,-264.65691,0.00020993,2]
[317445209,1709803838701,-167.264028,0.00021956,2]
[317445211,1709803838711,-172.880325,0.00021956,2]
[317445212,1709803838721,-167.264026,0.00021956,2]
[317445214,1709803838730,-493.0,0.00022,2]
[317445217,1709803838740,-1668.03514243,0.00022191,2]
[317445218,1709803838750,-493.0,0.00022192,2]
[317445220,1709803838760,-155.0,0.000223,2]
[317445222,1709803838770,-200.0,0.000223,2]
[317445224,1709803838779,-306.0,0.000223,2]
[317445226,1709803838789,-29646.87138475,0.00022396,3]
[317445229,1709803838798,-5000.0,0.00022396,7]
[317445231,1709803838807,-1654.84504179,0.000228,6]
[317445233,1709803838817,-2923.67490559,0.000229,2]
[317445235,1709803838827,-1339.8890924,0.000229,2]
[317445237,1709803838836,-6985.89184684,0.000229,2]
[317445239,1709803838846,-8242.71882646,0.00022975,2]
[317445241,1709803838857,-500.0,0.00022997,2]
[317445242,1709803838866,-500.0,0.00022997,2]
[317445244,1709803838875,-500.0,0.00022997,2]
[317445246,1709803838885,-500.0,0.00022997,2]
[317445248,1709803838894,-500.0,0.00022997,2]
[317445250,1709803838904,-615.84543472,0.00022997,2]
[317445252,1709803838913,-291.8253862,0.00022997,2]
[317445254,1709803838922,-625.43159908,0.00022998,2]
[317445256,1709803838931,-10259.0195083,0.00022998,2]
[317445258,1709803838941,-155.3144114,0.00022998,2]
[317445261,1709803838951,-596.10414782,0.00022998,2]
[317445263,1709803838960,-176.20974066,0.00022998,2]
[317445265,1709803838969,-265.53579139,0.00022998,2]
[317445267,1709803838978,-1950.60602556,0.00022998,2]
[317445269,1709803838988,-745.36465456,0.00022998,2]
[317445279,1709803839074,-279.78176882,0.00022998,2]
[317445281,1709803839083,-163.28505548,0.00022998,2]
[317445283,1709803839093,-157.81000743,0.00022998,2]
[317445285,1709803839105,-7899.56120569,0.00022998,3]
[317445287,1709803839114,-524.35492331,0.00022998,2]
[317445289,1709803839123,-239.42363109,0.00022998,2]
[317445291,1709803839132,-220.30216238,0.00022998,2]
[317445293,1709803839141,-175.10635991,0.00022999,2]
[317445295,1709803839150,-186.77233558,0.00022999,2]
[317445297,1709803839159,-195.0,0.00022999,2]
[317445299,1709803839168,-214.68542392,0.00022999,2]
[317445301,1709803839177,-1391.2056662,0.00022999,2]
[317445303,1709803839187,-160.0,0.00022999,2]
[317445305,1709803839196,-160.0,0.00022999,2]
[317445307,1709803839204,-160.0,0.00022999,2]
[317445309,1709803839213,-1280335.23015629,0.00023,5]
[317445311,1709803839223,-2635868.12743425,0.00023,5]
[317445313,1709803839236,-2866.67163492,0.00023,5]
[317445541,1709803841589,-2522.40981283,0.00023,5]
[317445548,1709803841652,-311.20545213,0.00023,5]
[317445788,1709803843975,-2467.16588309,0.00023,5]
[317446087,1709803846652,-43152.52695531,0.00023,5]
[317449404,1709804238338,178.693053,0.00019792,2]
[317449411,1709804326313,2351.9036548,0.00019955,2]
[317449419,1709804803551,572.17784729,0.000189,2]
[317449738,1709805041651,-754.57402377,0.00020026,2]
[317449740,1709805041663,-429.03125533,0.00020027,2]
[317449742,1709805041673,-3400.00972637,0.00020027,2]
[317449744,1709805041683,-1622.78499453,0.00020028,2]
[317449747,1709805041695,-378.79359255,0.00020028,2]
[317449749,1709805041707,-261.546,0.00020028,2]
[317449983,1709805043881,-3604.28593421,0.00020028,2]
[317450266,1709805046865,-2613.60092546,0.00020028,2]
[317450268,1709805046875,-3917.9677765,0.00020042,2]
[317450270,1709805046886,-9694.9117,0.00021126,7]
[317450272,1709805046895,-250.0,0.00021567,7]
[317450274,1709805046904,-50000.0,0.00021568,5]
[317450276,1709805046915,-151.27196419,0.00021688,2]
[317450278,1709805046925,-496.0,0.00022,2]
[317450280,1709805046935,-496.0,0.00022192,2]
[317450282,1709805046945,-238.7,0.000222,2]
[317450284,1709805046954,-154.13261962,0.00022396,3]
[317450286,1709805046964,-5000.0,0.00022396,7]
[317450288,1709805046973,-6000.0,0.000229,2]
[317450290,1709805046983,-6000.0,0.000229,2]
[317450292,1709805046992,-6000.0,0.000229,2]
[317450294,1709805047001,-587.458097,0.000229,2]
[317450295,1709805047010,-1205.90018316,0.000229,2]
[317450298,1709805047020,-500.0,0.00022997,2]
[317450299,1709805047030,-363.78562825,0.00022997,2]
[317450301,1709805047040,-500.0,0.00022997,2]
[317450304,1709805047050,-500.0,0.00022997,2]
[317450306,1709805047060,-500.0,0.00022997,2]
[317450308,1709805047070,-6343.21406112,0.00022998,2]
[317450310,1709805047080,-155.0294556,0.00022998,2]
[317450312,1709805047090,-437.1874962,0.00022999,2]
[317450314,1709805047099,-1538.20193615,0.00022999,2]
[317450316,1709805047110,-1178.72122553,0.00022999,2]
[317451085,1709805055720,2298.5012595,0.0002,5]
[317451088,1709805055746,398.18358972,0.0002,5]
[317451633,1709805473566,40935.77226738,0.0002,2]
[317451685,1709806231999,-1605.92382438,0.00018603,2]
[317451686,1709806232008,-429.03125533,0.00018603,2]
[317451687,1709806232018,-3062.73353097,0.00018603,2]
[317452309,1709806243470,-2857.0417146,0.00018603,2]
[317452326,1709806243538,-2847.89397282,0.00018603,2]
[317452330,1709806243645,-6673.05442227,0.00018603,2]
[317452332,1709806243655,-419.20779098,0.00018604,2]
[317452335,1709806243664,-1771.40506744,0.00018604,2]
[317452338,1709806243673,-3262.66189279,0.00018607,2]
[317452412,1709806244380,-305.58771736,0.00018607,2]
[317452431,1709806244561,-21321.75038985,0.00018607,2]
[317452433,1709806244571,-519.52912745,0.000189,2]
[317452435,1709806244581,-52376.88131631,0.0002,2]
[317452437,1709806244591,-8481.01144675,0.0002,2]
[317452439,1709806244600,-582.7679331,0.00021,2]
[317452441,1709806244610,-372.0,0.00022,2]
[317452443,1709806244620,-372.0,0.00022192,2]
[317452445,1709806244629,-388.4847455,0.000222,2]
[317452447,1709806244639,-262.64284758,0.00022387,2]
[317452449,1709806244648,-5613.3429908,0.00022388,3]
[317452451,1709806244657,-3190.99509069,0.00022388,3]
[317452453,1709806244667,-705.03003523,0.00022388,3]
[317452455,1709806244676,-153.0,0.00022603,2]
[317452457,1709806244687,-153.0,0.00022603,2]
[317452459,1709806244698,-153.0,0.00022603,2]
[317452461,1709806244708,-200.9149876,0.00022603,2]
[317452463,1709806244724,-153.0,0.00022603,2]
[317452465,1709806244733,-153.0,0.00022603,2]
[317452467,1709806244742,-153.0,0.00022603,2]
[317452469,1709806244751,-200.9149876,0.00022603,2]
[317452471,1709806244762,-153.0,0.00022603,2]
[317452473,1709806244777,-200.9149876,0.00022603,2]
[317452475,1709806244788,-153.0,0.00022603,2]
[317452477,1709806244797,-153.0,0.00022603,2]
[317452479,1709806244807,-153.0,0.00022603,2]
[317452481,1709806244816,-200.9149876,0.00022603,2]
[317452483,1709806244825,-153.0,0.00022603,2]
[317452485,1709806244836,-153.0,0.00022603,2]
[317452487,1709806244845,-200.9149876,0.00022603,2]
[317452489,1709806244855,-153.0,0.00022603,2]
[317452491,1709806244864,-265.03242858,0.000228,6]
[317452493,1709806244874,-1085.31016488,0.000229,2]
[317452495,1709806244884,-151.7119154,0.00022953,2]
[317452497,1709806244893,-2595.97003118,0.00022998,2]
[317452499,1709806244903,-155.57723619,0.00022998,2]
[317452501,1709806244912,-315.35971624,0.00022998,2]
[317452503,1709806244922,-238.32208588,0.00022998,2]
[317452505,1709806244932,-250.0,0.00022999,21]
[317452507,1709806244941,-250.0,0.00022999,14]
[317452509,1709806244950,-72234.31027401,0.00023,5]
[317452511,1709806244965,-3790.68452715,0.00023,5]
[317452582,1709806245996,-538.61450309,0.00023,5]
[317452594,1709806246115,-649.13818402,0.00023,5]
[317454763,1709807432177,-186.37542512,0.00020828,2]
[317454764,1709807432186,-429.03125533,0.00020829,2]
[317454765,1709807432195,-1771.40506744,0.0002083,2]
[317454766,1709807432205,-8481.01144675,0.00020831,2]
[317454767,1709807432214,-1605.92382438,0.00020832,2]
[317454768,1709807432224,-419.20779098,0.00020832,2]
[317454769,1709807432236,-401.58364334,0.000209,2]
[317454770,1709807432245,-3913.9519,0.00021136,7]
[317454771,1709807432255,-622.17914651,0.00021822,2]
[317454772,1709807432267,-834.89109779,0.00022,2]
[317454773,1709807432276,-279.0,0.00022,2]
[317454774,1709807432285,-279.0,0.00022192,2]
[317454775,1709807432294,-200.0,0.000222,2]
[317454776,1709807432304,-682.68862632,0.00022388,3]
[317454777,1709807432313,-1827.36750876,0.00022388,3]
[317454778,1709807432323,-1505.50877984,0.00022388,3]
[317454779,1709807432334,-200.4447332,0.00022478,2]
[317454780,1709807432343,-1107.51987024,0.000229,2]
[317454781,1709807432353,-784.40667677,0.000229,2]
[317454782,1709807432363,-620.10895733,0.00022913,2]
[317454783,1709807432372,-274.0342241,0.00022998,2]
[317454784,1709807432381,-291.21960429,0.00022998,2]
[317454785,1709807432391,-3942.97923662,0.00022998,2]
[317454786,1709807432401,-156.10200917,0.00022998,2]
[317454787,1709807432411,-155.42225802,0.00022998,2]
[317454788,1709807432421,-155.69178995,0.00022998,2]
[317454789,1709807432430,-535.34090482,0.00022998,2]
[317454790,1709807432440,-2595.97003118,0.00022998,2]
[317454791,1709807432449,-191.52565569,0.00022998,2]
[317454792,1709807432459,-1000.0,0.00022999,3]
[317454793,1709807432468,-5543.33321127,0.00022999,2]
[317454794,1709807432480,-500.0,0.00022999,2]
[317454795,1709807432490,-29463.3323854,0.00023,5]
[317454808,1709807438167,-14157.17236101,0.00023,5]
[317454845,1709807441179,-94621.24088037,0.00023,5]
[317454866,1709807443256,-1127.63913635,0.00023,5]
[317454873,1709807443317,-3915.14932259,0.00023,5]
[317454875,1709807443330,-22174.56143915,0.00023,5]
[317454911,1709807446262,-218.4072591,0.00022999,2]
[317454912,1709807446272,-670.1294909,0.00023,5]
[317454913,1709807446284,-944.81270427,0.00023,5]
[317454914,1709807446295,-21097.8015663,0.00023,5]
[317454915,1709807446325,-1079.07724722,0.00023,5]
[317454918,1709807446337,-471.37355978,0.00023,5]
[317456137,1709807686266,9965.63,0.000208,10]
[317456140,1709807712592,-900000.0,0.00024776,60]
[317456141,1709807715827,-900000.0,0.00024776,60]
[317456142,1709807719381,-900000.0,0.00024776,60]
[317456143,1709807723171,-900000.0,0.00024776,60]
[317456146,1709807753922,-900000.0,0.00024771,60]
[317456275,1709808632380,-300.61151088,0.00020749,2]
[317456277,1709808632389,-429.03125533,0.00020749,2]
[317456279,1709808632399,-218.4072591,0.0002075,2]
[317456281,1709808632409,-8481.01144675,0.00020751,2]
[317456283,1709808632418,-1771.40506744,0.00020751,2]
[317456285,1709808632428,-10264.2918001,0.00020752,2]
[317456287,1709808632437,-1605.92382438,0.00020754,2]
[317456288,1709808632446,-8842.7011331,0.00021221,2]
[317456290,1709808632456,-210.0,0.00022,2]
[317456292,1709808632465,-8242.71882646,0.00022,2]
[317456294,1709808632475,-210.0,0.00022192,2]
[317456296,1709808632484,-514.99698427,0.00022388,3]
[317456298,1709808632493,-5000.0,0.00022388,7]
[317456300,1709808632503,-267.72242889,0.00022676,2]
[317456301,1709808632512,-3822.70426147,0.000228,6]
[317456303,1709808632523,-3025.56960255,0.000229,2]
[317456305,1709808632532,-996.76788327,0.000229,2]
[317456307,1709808632541,-3930.74380839,0.00022998,2]
[317456309,1709808632551,-2595.97003118,0.00022998,2]
[317456311,1709808632561,-1170.75169083,0.00022998,3]
[317456313,1709808632570,-875.09853826,0.00022998,2]
[317456314,1709808632579,-1470.00573616,0.00022998,2]
[317456316,1709808632589,-155.3144114,0.00022998,2]
[317456318,1709808632598,-524.35492331,0.00022998,2]
[317456320,1709808632607,-596.10414782,0.00022998,2]
[317456321,1709808632615,-176.20974066,0.00022998,2]
[317456323,1709808632625,-745.36465456,0.00022998,2]
[317456325,1709808632634,-1950.60602556,0.00022998,2]
[317456327,1709808632643,-239.42363109,0.00022998,2]
[317456329,1709808632653,-279.78176882,0.00022998,2]
[317456331,1709808632662,-163.28505548,0.00022998,2]
[317456333,1709808632672,-157.81000743,0.00022998,2]
[317456335,1709808632681,-265.53579139,0.00022998,2]
[317456337,1709808632695,-220.30216238,0.00022998,2]
[317456338,1709808632704,-625.43159908,0.00022998,2]
[317456340,1709808632713,-1668.03514243,0.00022998,2]
[317456342,1709808632724,-171.33939289,0.00022999,2]
[317456344,1709808632734,-178.93732785,0.00022999,2]
[317456346,1709808632743,-175.10635991,0.00022999,2]
[317456348,1709808632753,-500.0,0.00022999,2]
[317456350,1709808632764,-500.0,0.00022999,2]
[317456352,1709808632775,-615.84543472,0.00022999,2]
[317456353,1709808632784,-500.0,0.00022999,2]
[317456355,1709808632794,-500.0,0.00022999,2]
[317456357,1709808632805,-500.0,0.00022999,2]
[317456359,1709808632814,-291.8253862,0.00022999,2]
[317456361,1709808632824,-160.0,0.00022999,2]
[317456363,1709808632833,-160.0,0.00022999,2]
[317456365,1709808632843,-4454.85575115,0.00023,5]
[317456367,1709808632857,-2461.47800417,0.00023,5]
[317456369,1709808632869,-6458.92874712,0.00023,5]
[317456842,1709808638322,-3891.61711456,0.00023,5]
[317456844,1709808638337,-580.94121186,0.00023,5]
[317456850,1709808638384,-1102508.99197136,0.00023,5]
[317456852,1709808638394,-3623.02,0.00023,2]
[317456854,1709808638404,-784.55,0.00023,2]
[317456857,1709808638414,-12500.0,0.00023,2]
[317456872,1709808638507,-12500.0,0.00023,2]
[317456874,1709808638518,-5030.79,0.00023,2]
[317456876,1709808638528,-10995.7,0.00023,2]
[317456878,1709808638537,-174.0,0.00023,2]
[317456880,1709808638547,-175.5,0.00023,2]
[317456882,1709808638557,-175.5,0.00023,2]
[317456884,1709808638566,-502.06222346,0.00023,2]
[317456886,1709808638576,-285.56471753,0.00023,2]
[317456888,1709808638585,-1273.97941087,0.00023,2]
[317456890,1709808638595,-5500.64028098,0.00023,2]
[317456892,1709808638604,-5008.38260036,0.00023,2]
[317456894,1709808638613,-184.20532805,0.00023,2]
[317456895,1709808638622,-500.0,0.00023,2]
[317456897,1709808638631,-686.08024275,0.00023,2]
[317456899,1709808638640,-159.8524535,0.00023,2]
[317456901,1709808638649,-300.0,0.00023,10]
[317456903,1709808638659,-581.0,0.00023,2]
[317456905,1709808638669,-500.0,0.00023,2]
[317456907,1709808638680,-2841178.00984144,0.00023,6]
[317457234,1709808643474,-429.03125533,0.00022999,2]
[317457236,1709808643483,-62.48286456,0.00023,6]
[317457527,1709808646361,-1565.85927465,0.00022999,2]
[317457529,1709808646373,-6915.1521721,0.00022999,2]
[317457531,1709808646383,-1148.33681677,0.00022999,2]
[317457533,1709808646393,-1771.40506744,0.00022999,2]
[317457535,1709808646402,-13296.68405919,0.00023,6]
[317457540,1709808646442,-167.00639494,0.00022999,2]
[317457542,1709808646451,-29832.99360506,0.00023,6]
[317457545,1709808646463,-11558.45950139,0.00023,6]
[317457548,1709808646474,-14495.42791934,0.00023,6]
[317460876,1709809832505,-167.00639494,0.00020541,2]
[317460877,1709809832515,-1148.71669859,0.00020541,2]
[317460878,1709809832524,-1771.40506744,0.00020541,2]
[317460879,1709809832534,-218.4072591,0.00020542,2]
[317460880,1709809832543,-429.03125533,0.00020543,2]
[317460881,1709809832553,-8481.01144675,0.00020544,2]
[317460882,1709809832563,-256.952126,0.00020679,2]
[317460883,1709809832572,-247.2645428,0.00020794,2]
[317460884,1709809832581,-178.48161926,0.000209,2]
[317460885,1709809832591,-1647.22476083,0.00022,2]
[317460886,1709809832602,-51.66444648,0.00022,2]
[317460887,1709809832612,-219.0,0.00022,2]
[317460888,1709809832621,-200.0,0.000221,2]
[317460889,1709809832631,-219.0,0.00022192,2]
[317460890,1709809832642,-3341.89633494,0.00022388,3]
[317460927,1709809839239,-535.51548194,0.00022388,3]
[317460934,1709809839306,-19378.94238565,0.00022388,3]
[317460936,1709809839316,-2203.45910724,0.00022388,3]
[317460938,1709809839325,-773.95089066,0.00022388,3]
[317460940,1709809839334,-1654.84504179,0.000228,6]
[317460942,1709809839345,-4214.51201575,0.00022898,2]
[317460944,1709809839354,-500.0,0.00022899,2]
[317460946,1709809839364,-221.94195979,0.00022899,2]
[317460948,1709809839374,-500.0,0.00022899,2]
[317460950,1709809839382,-500.0,0.00022899,2]
[317460952,1709809839391,-500.0,0.00022899,2]
[317460954,1709809839401,-500.0,0.00022899,2]
[317460956,1709809839410,-500.0,0.00022899,2]
[317460958,1709809839419,-495.37019248,0.00022899,2]
[317460960,1709809839429,-74598.34897363,0.000229,2]
[317460962,1709809839438,-6985.89184684,0.000229,2]
[317460964,1709809839448,-11567.55025703,0.000229,2]
[317460966,1709809839458,-6229.49011604,0.00022976,2]
[317460968,1709809839468,-2595.97003118,0.00022998,2]
[317460970,1709809839477,-155.04341216,0.00022998,2]
[317460972,1709809839486,-1997.82809035,0.00022998,2]
[317460974,1709809839495,-1502.20468686,0.00022999,2]
[317460976,1709809839507,-7899.56120569,0.00022999,3]
[317460978,1709809839516,-3930.74380839,0.00022999,2]
[317460979,1709809839525,-160.65464458,0.00022999,2]
[317460981,1709809839535,-1391.2056662,0.00022999,2]
[317460983,1709809839544,-160.0,0.00022999,2]
[317460985,1709809839554,-160.0,0.00022999,2]
[317460987,1709809839563,-160.0,0.00022999,2]
[317460989,1709809839572,-160.0,0.00022999,2]
[317460991,1709809839581,-173.24715918,0.00022999,2]
[317460993,1709809839590,-160.0,0.00022999,2]
[317460995,1709809839599,-160.0,0.00022999,2]